Workbook

Sheet Geodesie
A1: Paramètres de Base des Géodésies Utilisées
A3: Index
D4: Géodésie
A5: Spheroide: | B5: 12 | D5: Sphéroide | E5: =INDEX(Spheroides!C8:C56,B5) -> CLARKE 1880 IGN
D6: Gd Axe: | E6: =INDEX(Spheroides!D8:D56,B5) -> 6378249.2
D7: Pt Axe: | E7: =INDEX(Spheroides!E8:E56,B5) -> 6356515
D8: e2 | E8: =INDEX(Spheroides!F8:F56,B5) -> 0.006803487646
D9: 1 / f | E9: =INDEX(Spheroides!H8:H56,B5) -> 293.4660213

Sheet Modele
A1: Version du 20/12/95 | B1: Position | C1: =Geodesie!E5 -> CLARKE 1880 IGN | J1: Distance (km) | L1: Slack | M1: Cable Distance (km) | O1: Cable | P1: Cumulative | Q1: Totals | R1: Approx
A2: Christian Auroux | B2: Number | C2: Latitude | F2: Longitude | I2: Heading | J2: Between | K2: Cumulative | L2: % | M2: Between | N2: Cumulative | O2: Type | P2: by type | Q2: By Type | R2: Depth | T2: Comments
A3: rplcap | J3: Positions | K3: Total | M3: Positions | N3: Total | Q3: (km) | R3: (m)
B5: 1 | C5: 41 | D5: 14.2 | E5: =IF(OR(C5<0,AND(C5=0,D5<0)),"S","N") -> N | F5: 9 | G5: 57 | H5: =IF(OR(F5<0,AND(F5=0,G5<0)),"W","E") -> E | K5: 0 | N5: 0 | P5: 0 | Q5: =IF(O4=O6,"",P5) -> 0 | R5: 0 | T5: Landing
I6: =Cap(C5,D5,F5,G5,C7,D7,F7,G7) -> 356.6430818 | J6: =Distance(C5,D5,F5,G5,C7,D7,F7,G7) -> 21.69383604 | L6: 1 | M6: =J6*(1+L6/100) -> 21.9107744 | O6: DA
B7: =B5+1 -> 2 | C7: 41 | D7: 25.9 | E7: =IF(OR(C7<0,AND(C7=0,D7<0)),"S","N") -> N | F7: 9 | G7: 56.086 | H7: =IF(OR(F7<0,AND(F7=0,G7<0)),"W","E") -> E | K7: =K5+J6 -> 21.69383604 | N7: =N5+M6 -> 21.9107744 | P7: =IF(O6=O4,P5+M6,M6) -> 21.9107744 | Q7: =IF(O6=O8,"",P7) -> 21.9107744 | R7: 100 | T7: DA/SA
I8: =Cap(C7,D7,F7,G7,C9,D9,F9,G9) -> 356.6459072 | J8: =Distance(C7,D7,F7,G7,C9,D9,F9,G9) -> 2.039623946 | L8: 1 | M8: =J8*(1+L8/100) -> 2.060020186 | O8: SA
B9: =B7+1 -> 3 | C9: 41 | D9: 27 | E9: =IF(OR(C9<0,AND(C9=0,D9<0)),"S","N") -> N | F9: 9 | G9: 56 | H9: =IF(OR(F9<0,AND(F9=0,G9<0)),"W","E") -> E | K9: =K7+J8 -> 23.73345999 | N9: =N7+M8 -> 23.97079459 | P9: =IF(O8=O6,P7+M8,M8) -> 2.060020186 | Q9: =IF(O8=O10,"",P9) ->  | R9: 150 | T9: A/C 1
I10: =Cap(C9,D9,F9,G9,C11,D11,F11,G11) -> 5.954084067 | J10: =Distance(C9,D9,F9,G9,C11,D11,F11,G11) -> 40.01540412 | L10: 1 | M10: =J10*(1+L10/100) -> 40.41555816 | O10: SA
B11: =B9+1 -> 4 | C11: 41 | D11: 48.5 | E11: =IF(OR(C11<0,AND(C11=0,D11<0)),"S","N") -> N | F11: 9 | G11: 59 | H11: =IF(OR(F11<0,AND(F11=0,G11<0)),"W","E") -> E | K11: =K9+J10 -> 63.7488641 | N11: =N9+M10 -> 64.38635274 | P11: =IF(O10=O8,P9+M10,M10) -> 42.47557834 | Q11: =IF(O10=O12,"",P11) -> 42.47557834 | R11: 700 | T11: SA/LWA
I12: =Cap(C11,D11,F11,G11,C13,D13,F13,G13) -> 349.0126524 | J12: =Distance(C11,D11,F11,G11,C13,D13,F13,G13) -> 21.68879462 | L12: 2 | M12: =J12*(1+L12/100) -> 22.12257052 | O12: LWA
B13: =B11+1 -> 5 | C13: 42 | D13: 0 | E13: =IF(OR(C13<0,AND(C13=0,D13<0)),"S","N") -> N | F13: 9 | G13: 56 | H13: =IF(OR(F13<0,AND(F13=0,G13<0)),"W","E") -> E | K13: =K11+J12 -> 85.43765873 | N13: =N11+M12 -> 86.50892326 | P13: =IF(O12=O10,P11+M12,M12) -> 22.12257052 | Q13: =IF(O12=O14,"",P13) ->  | R13: 1100 | T13: A/C 2
I14: =Cap(C13,D13,F13,G13,C15,D15,F15,G15) -> 54.63894375 | J14: =Distance(C13,D13,F13,G13,C15,D15,F15,G15) -> 58.31607241 | L14: 2 | M14: =J14*(1+L14/100) -> 59.48239386 | O14: LWA
B15: =B13+1 -> 6 | C15: 42 | D15: 18.185 | E15: =IF(OR(C15<0,AND(C15=0,D15<0)),"S","N") -> N | F15: 10 | G15: 30.566 | H15: =IF(OR(F15<0,AND(F15=0,G15<0)),"W","E") -> E | K15: =K13+J14 -> 143.7537311 | N15: =N13+M14 -> 145.9913171 | P15: =IF(O14=O12,P13+M14,M14) -> 81.60496438 | Q15: =IF(O14=O16,"",P15) -> 81.60496438 | R15: 1200 | T15: LWA/LW
I16: =Cap(C15,D15,F15,G15,C17,D17,F17,G17) -> 54.86450389 | J16: =Distance(C15,D15,F15,G15,C17,D17,F17,G17) -> 32.90321693 | L16: 4 | M16: =J16*(1+L16/100) -> 34.2193456 | O16: LW
B17: =B15+1 -> 7 | C17: 42 | D17: 28.388 | E17: =IF(OR(C17<0,AND(C17=0,D17<0)),"S","N") -> N | F17: 10 | G17: 50.196 | H17: =IF(OR(F17<0,AND(F17=0,G17<0)),"W","E") -> E | K17: =K15+J16 -> 176.6569481 | N17: =N15+M16 -> 180.2106627 | P17: =IF(O16=O14,P15+M16,M16) -> 34.2193456 | Q17: =IF(O16=O18,"",P17) ->  | R17: 1300 | T17: A/C 3
I18: =Cap(C17,D17,F17,G17,C19,D19,F19,G19) -> 55.17656475 | J18: =Distance(C17,D17,F17,G17,C19,D19,F19,G19) -> 90.98020597 | L18: 4 | M18: =J18*(1+L18/100) -> 94.61941421 | O18: LW
B19: =B17+1 -> 8 | C19: 42 | D19: 56.38 | E19: =IF(OR(C19<0,AND(C19=0,D19<0)),"S","N") -> N | F19: 11 | G19: 44.958 | H19: =IF(OR(F19<0,AND(F19=0,G19<0)),"W","E") -> E | K19: =K17+J18 -> 267.637154 | N19: =N17+M18 -> 274.8300769 | P19: =IF(O18=O16,P17+M18,M18) -> 128.8387598 | Q19: =IF(O18=O20,"",P19) ->  | R19: 1400 | T19: A/C 4
I20: =Cap(C19,D19,F19,G19,C21,D21,F21,G21) -> 55.64460679 | J20: =Distance(C19,D19,F19,G19,C21,D21,F21,G21) -> 90.73900479 | L20: 4 | M20: =J20*(1+L20/100) -> 94.36856498 | O20: LW
B21: =B19+1 -> 9 | C21: 43 | D21: 23.967 | E21: =IF(OR(C21<0,AND(C21=0,D21<0)),"S","N") -> N | F21: 12 | G21: 40.294 | H21: =IF(OR(F21<0,AND(F21=0,G21<0)),"W","E") -> E | K21: =K19+J20 -> 358.3761588 | N21: =N19+M20 -> 369.1986419 | P21: =IF(O20=O18,P19+M20,M20) -> 223.2073248 | Q21: =IF(O20=O22,"",P21) ->  | R21: 1100 | T21: A/C 5
I22: =Cap(C21,D21,F21,G21,C23,D23,F23,G23) -> 56.12879775 | J22: =Distance(C21,D21,F21,G21,C23,D23,F23,G23) -> 90.49253485 | L22: 4 | M22: =J22*(1+L22/100) -> 94.11223625 | O22: LW
B23: =B21+1 -> 10 | C23: 43 | D23: 51.136 | E23: =IF(OR(C23<0,AND(C23=0,D23<0)),"S","N") -> N | F23: 13 | G23: 36.212 | H23: =IF(OR(F23<0,AND(F23=0,G23<0)),"W","E") -> E | K23: =K21+J22 -> 448.8686937 | N23: =N21+M22 -> 463.3108782 | P23: =IF(O22=O20,P21+M22,M22) -> 317.319561 | Q23: =IF(O22=O24,"",P23) ->  | R23: 2200 | T23: A/C 6
I24: =Cap(C23,D23,F23,G23,C25,D25,F25,G25) -> 56.6261527 | J24: =Distance(C23,D23,F23,G23,C25,D25,F25,G25) -> 90.24038903 | L24: 4 | M24: =J24*(1+L24/100) -> 93.8500046 | O24: LW
B25: =B23+1 -> 11 | C25: 44 | D25: 17.876 | E25: =IF(OR(C25<0,AND(C25=0,D25<0)),"S","N") -> N | F25: 14 | G25: 32.717 | H25: =IF(OR(F25<0,AND(F25=0,G25<0)),"W","E") -> E | K25: =K23+J24 -> 539.1090827 | N25: =N23+M24 -> 557.1608828 | P25: =IF(O24=O22,P23+M24,M24) -> 411.1695656 | Q25: =IF(O24=O26,"",P25) ->  | R25: 2000 | T25: A/C 7
I26: =Cap(C25,D25,F25,G25,C27,D27,F27,G27) -> 57.13890391 | J26: =Distance(C25,D25,F25,G25,C27,D27,F27,G27) -> 89.98790534 | L26: 4 | M26: =J26*(1+L26/100) -> 93.58742155 | O26: LW
B27: =B25+1 -> 12 | C27: 44 | D27: 44.176 | E27: =IF(OR(C27<0,AND(C27=0,D27<0)),"S","N") -> N | F27: 15 | G27: 29.818 | H27: =IF(OR(F27<0,AND(F27=0,G27<0)),"W","E") -> E | K27: 629.0969881 | N27: 650.7483043 | P27: =IF(O26=O24,P25+M26,M26) -> 504.7569872 | R27: 1800 | T27: A/C 8
I28: =Cap(C27,D27,F27,G27,C29,D29,F29,G29) -> 57.4254447 | J28: 9.972965826 | L28: 4 | M28: 10.37188446 | O28: LW
B29: =B27+1 -> 13 | C29: 44 | D29: 47.068 | E29: =IF(OR(C29<0,AND(C29=0,D29<0)),"S","N") -> N | F29: 15 | G29: 36.193 | H29: =IF(OR(F29<0,AND(F29=0,G29<0)),"W","E") -> E | K29: 639.0699539 | N29: 661.1201888 | P29: 515.1288717 | Q29: 515.1288717 | R29: 1200 | T29: LW/LWA
I30: =Cap(C29,D29,F29,G29,C31,D31,F31,G31) -> 57.4847334 | J30: 9.160244102 | L30: 2 | M30: 9.343448985 | O30: LWA
B31: =B29+1 -> 14 | C31: 44 | D31: 49.72 | E31: =IF(OR(C31<0,AND(C31=0,D31<0)),"S","N") -> N | F31: 15 | G31: 42.057 | H31: =IF(OR(F31<0,AND(F31=0,G31<0)),"W","E") -> E | K31: 648.230198 | N31: 670.4636378 | P31: 9.343448985 | Q31: 9.343448985 | R31: 700 | T31: LWA/SA
I32: =Cap(C31,D31,F31,G31,C33,D33,F33,G33) -> 57.53946679 | J32: 9.270922363 | L32: 1 | M32: 9.363631587 | O32: SA
B33: =B31+1 -> 15 | C33: 44 | D33: 52.4 | E33: =IF(OR(C33<0,AND(C33=0,D33<0)),"S","N") -> N | F33: 15 | G33: 48 | H33: =IF(OR(F33<0,AND(F33=0,G33<0)),"W","E") -> E | K33: 657.5011204 | N33: 679.8272693 | P33: 9.363631587 | R33: 300 | T33: A/C 9
I34: =Cap(C33,D33,F33,G33,C35,D35,F35,G35) -> 79.83643512 | J34: 1.14789207 | L34: 1 | M34: 1.159370991 | O34: SA
B35: =B33+1 -> 16 | C35: 44 | D35: 52.509 | E35: =IF(OR(C35<0,AND(C35=0,D35<0)),"S","N") -> N | F35: 15 | G35: 48.858 | H35: =IF(OR(F35<0,AND(F35=0,G35<0)),"W","E") -> E | K35: =K33+J34 -> 658.6490124 | N35: =N33+M34 -> 680.9866403 | P35: 10.52300258 | Q35: 10.52300258 | R35: 100 | T35: SA/DA
I36: =Cap(C35,D35,F35,G35,C37,D37,F37,G37) -> 79.90479311 | J36: =Distance(C35,D35,F35,G35,C37,D37,F37,G37) -> 5.205435185 | L36: 1 | M36: =J36*(1+L36/100) -> 5.257489537 | O36: DA
B37: =B35+1 -> 17 | C37: 44 | D37: 53 | E37: =IF(OR(C37<0,AND(C37=0,D37<0)),"S","N") -> N | F37: 15 | G37: 52.75 | H37: =IF(OR(F37<0,AND(F37=0,G37<0)),"W","E") -> E | K37: =K35+J36 -> 663.8544476 | N37: =N35+M36 -> 686.2441299 | P37: =IF(O36=O34,P35+M36,M36) -> 5.257489537 | Q37: 5.257489537 | R37: 0 | T37: Landing

Sheet Spheroides
A1: Liste des Ellipsoides Disponibles
C7: Nom | D7: Demi Grand | E7: Demi Petit | F7: e2 | G7: n | H7: 1 / f
B8: 1 | C8: AIRY | D8: 6377563.396 | E8: 6356256.909 | F8: =POWER(1/D8*(SQRT((D8*D8)-(E8*E8))),2) -> 0.006670540074 | G8: 0.00167322025 | H8: =1/((D8-E8)/D8) -> 299.3249613
B9: 2 | C9: AIRY MOD | D9: 6377340.189 | E9: 6356034.448 | F9: 0.006670539981 | G9: 0.001673220305 | H9: 299.3249655
B10: 3 | C10: AUSTRALIAN NATIONAL 1967/84 | D10: 6378160 | E10: 6356774.719 | F10: 0.006694541916 | H10: 298.2499973
B11: 4 | C11: BESSEL 1841 | D11: 6377397.155 | E11: 6356078.963 | F11: 0.006674372175 | G11: 0.001674184787 | H11: 299.1528154
B12: 5 | C12: BESSEL 1841 MOD | D12: 6377483.865 | E12: 6356165.383 | F12: 0.006674372221 | G12: 0.001674184798 | H12: 299.1528133
B13: 6 | C13: BESSEL NGO | D13: 6377492.018 | E13: 6356173.509 | F13: 0.006674372142 | H13: 299.1528168
B14: 7 | C14: BESSEL RD / POTSDAM | D14: 6377397.155 | E14: 6356078.963 | F14: 0.006674372175 | H14: 299.1528154
B15: 8 | C15: BROADCAST | D15: 6378135 | E15: 6356750.52 | F15: 0.006694317783 | H15: 298.2599998
B16: 9 | C16: CLARKE 1856 | D16: 6378235.6 | E16: 6356560.14 | F16: 0.00678514592 | H16: 294.2606801
B17: 10 | C17: CLARKE 1866 | D17: 6378206.4 | E17: 6356583.8 | F17: 0.006768657997 | G17: 0.001697915683 | H17: 294.9786982
B18: 11 | C18: CLARKE 1880 | D18: 6378249.145 | E18: 6356514.87 | F18: 0.006803511142 | G18: 0.001706688477 | H18: 293.4650061
B19: 12 | C19: CLARKE 1880 IGN | D19: 6378249.2 | E19: 6356515 | F19: 0.006803487646 | H19: 293.4660213
B20: 13 | C20: CLARKE 1880 MOD | D20: 6378249.145 | E20: 6356514.87 | F20: 0.006803511142 | G20: 0.001706688477 | H20: 293.4650061
B21: 14 | C21: CLARKE 1880 (PALESTINE) | D21: 6378300.782 | E21: 6356566.427 | F21: 0.006803481156 | H21: 293.4663017
B22: 15 | C22: DANISH 1876 / ANDRAE | D22: 6377104.43 | E22: 6355847.415 | F22: 0.006655555628 | H22: 299.9999967
B23: 16 | C23: EVEREST (INDE) METRIQUE | D23: 6377301.243 | E23: 6356100.23 | F23: 0.00663784612 | H23: 300.8017232
B24: 17 | C24: EVEREST (MALAYA) | D24: 6377295.664 | E24: 6356094.668 | F24: 0.006637846604 | H24: 300.8017012
B25: 18 | C25: EVEREST 1830 | D25: 6377276.345 | E25: 6356075.413 | F25: 0.006637846674 | G25: 0.001664992251 | H25: 300.801698
B26: 19 | C26: EVEREST 1830 (MOD.) | D26: 6377298.561 | E26: 6356097.555 | F26: 0.006637846719 | H26: 300.801696
B27: 20 | C27: EVEREST BORNEO | D27: 6377298.556 | E27: 6356097.555 | F27: 0.006637845161 | H27: 300.8017667
B28: 21 | C28: EVEREST MOD. | D28: 6377304.063 | E28: 6356103.039 | F28: 0.006637846628 | H28: 300.8017001
B29: 22 | C29: FISHER 1960 (MERCURY) | D29: 6378166 | E29: 6356784.284 | F29: 0.0066934215 | H29: 298.3000055
B30: 23 | C30: FISHER 1968 | D30: 6378150 | E30: 6356768.337 | F30: 0.006693421699 | H30: 298.2999966
B31: 24 | C31: FISCHER MOD | D31: 6378160 | E31: 6356774.719 | F31: 0.006694541916 | G31: 0.00167926114 | H31: 298.2499973
B32: 25 | C32: FISHER MOD. 1960 | D32: 6378155 | E32: 6356773.32 | F32: 0.006693421774 | H32: 298.2999933
B33: 26 | C33: GRS 67 | D33: 6378160 | E33: 6356774.516 | F33: 0.006694605357 | H33: 298.2471662
B34: 27 | C34: GRS 80 | D34: 6378137 | E34: 6356752.314 | F34: 0.006694380067 | H34: 298.2572201
B35: 28 | C35: HELMERT 1906 | D35: 6378200 | E35: 6356818 | F35: 0.006693474635 | G35: 0.001678992523 | H35: 298.2976335
B36: 29 | C36: HOUGH | D36: 6378270 | E36: 6356794.343 | F36: 0.006722670158 | G36: 0.001686340675 | H36: 296.999994
B37: 30 | C37: INTERNATIONAL | D37: 6378388 | E37: 6356911.946 | F37: 0.006722670062 | G37: 0.001686340651 | H37: 296.9999982
B38: 31 | C38: JEFFREYS 1948 | D38: 6378099 | E38: 6356631 | F38: 0.006720457146 | H38: 297.0979598
B39: 32 | C39: KRASSOVSKY | D39: 6378245 | E39: 6356863 | F39: 0.00669342749 | G39: 0.001678980657 | H39: 298.2997381
B40: 33 | C40: PRECISE | D40: 6378145 | E40: 6356759.769 | F40: 0.006694542007 | G40: 0.001679261164 | H40: 298.2499932
B41: 34 | C41: REF ELLIPSOIDE 1967 | D41: 6378160 | E41: 6356774.719 | F41: 0.006694541916 | G41: 0.00167926114 | H41: 298.2499973
B42: 35 | C42: S AMERICA 1969 | D42: 6378160 | E42: 6356774.719 | F42: 0.006694541916 | G42: 0.00167926114 | H42: 298.2499973
B43: 36 | C43: STRUVE 1860 | D43: 6378298.3 | E43: 6356657.143 | F43: 0.006774359698 | H43: 294.7300045
B44: 37 | C44: SVANBERG | D44: 6376797 | E44: 6355837.971 | F44: 0.006562725865 | H44: 304.2505929
B45: 38 | C45: WAR OFFICE 1924 | D45: 6378300 | E45: 6356751.689 | F45: 0.006745343375 | H45: 295.9999974
B46: 39 | C46: WGS 60 | D46: 6378165 | E46: 6356783.287 | F46: 0.00669342161 | H46: 298.3000006
B47: 40 | C47: WGS 66 | D47: 6378145 | E47: 6356759.769 | F47: 0.006694542007 | H47: 298.2499932
B48: 41 | C48: WGS 72 | D48: 6378135 | E48: 6356750.52 | F48: 0.006694317783 | G48: 0.00167920473 | H48: 298.2599998
B49: 42 | C49: WGS 84 | D49: 6378137 | E49: 6356752.314 | F49: 0.006694380067 | G49: 0.001679220406 | H49: 298.2572201
B50: 43
B51: 44
B52: 45
B53: 46
